bitfinex-derivatives/quotes_ETHF0:USTF0_20250320
["timestamp","ask_amount","ask_price","bid_price","bid_amount"]
[1742438540480,0.78784,2030.4,2030.3,3.2078]
[1742438540674,1.46244,2030.4,2030.3,3.2078]
[1742438540976,4.69644,2030.4,2030.3,0.61839501]
[1742438541372,0.78796,2030.1,2030.0,4.00317789]
[1742438541777,1.27,2030.3,2030.1,0.78794]
[1742438541778,0.78795,2030.2,2030.1,0.78794]
[1742438541976,0.78796,2030.1,2030.0,5.35735789]
[1742438542175,2.05796,2030.1,2030.0,5.35735789]
[1742438542972,2.05796,2030.1,2030.0,3.21518789]
[1742438543283,2.73256,2030.1,2030.0,3.21518789]
[1742438544179,2.73256,2030.1,2030.0,4.00318789]
[1742438544375,2.73256,2030.1,2030.0,5.35738789]
[1742438544579,2.05796,2030.1,2030.0,5.35738789]
[1742438544780,1.27,2030.1,2030.0,5.35738789]
[1742438545175,0.78787,2030.4,2030.1,1.96986]
[1742438545375,0.78788,2030.3,2030.2,2.75809]
[1742438545576,0.78788,2030.3,2030.2,43.55809]
[1742438545771,0.78788,2030.3,2030.2,43.5581]
[1742438546083,0.78788,2030.3,2030.2,43.55812]
[1742438546890,2.14157,2030.4,2030.3,0.78788]
[1742438547186,0.78788,2030.3,2030.2,43.5581]
[1742438547385,1.3537,2030.3,2030.2,42.2856]
[1742438547782,2.14158,2030.3,2030.2,42.2856]
[1742438548383,1.3537,2030.3,2030.2,1.4856]
[1742438552593,9.98176,2030.7,2030.6,0.78777]
[1742438552792,6.74776,2030.7,2030.6,0.78777]
[1742438552993,5.96,2030.7,2030.6,0.78777]
[1742438553492,6.74773,2030.7,2030.6,0.78777]
[1742438553992,8.15243,2030.7,2030.6,0.78777]
[1742438554491,7.3647,2030.7,2030.6,0.78777]
[1742438555292,1.4047,2030.7,2030.6,0.78777]
[1742438556996,6.6618,2031.0,2030.8,0.78767]
[1742438557191,0.78766,2030.9,2030.8,0.78767]
[1742438557391,0.78769,2030.8,2030.7,0.7877]
[1742438557793,0.78769,2030.8,2030.7,1.4332]
[1742438558298,2.18809,2030.8,2030.7,2.7097]
[1742438558696,1.4004,2030.8,2030.7,2.7097]
[1742438558900,2.18809,2030.8,2030.7,2.7097]
[1742438559793,1.4004,2030.8,2030.7,2.7097]
[1742438561600,0.78764,2031.0,2030.9,0.78765]
[1742438562195,0.78764,2031.0,2030.8,2.17056]
[1742438562394,1.2893,2030.9,2030.8,2.17056]
[1742438563492,2.07695,2030.9,2030.8,2.17056]
[1742438563900,1.2893,2030.9,2030.8,2.17056]
[1742438564095,2.07695,2030.9,2030.8,1.3829]
[1742438564699,2.07695,2030.9,2030.8,2.17059]
[1742438565698,1.2893,2030.9,2030.8,2.17059]
[1742438568096,2.07695,2030.9,2030.8,2.17059]
[1742438570507,2.07695,2030.9,2030.8,1.3829]
[1742438570810,1.2893,2030.9,2030.8,2.17059]
[1742438571099,0.78763,2031.0,2030.9,0.78761]
[1742438571301,0.78765,2030.9,2030.8,2.17056]
[1742438571509,2.16285,2030.9,2030.8,1.3829]
[1742438572006,2.16285,2030.9,2030.8,2.17059]
[1742438572204,0.78773,2030.7,2030.6,3.2078]
[1742438572798,2.06563,2030.7,2030.6,3.2078]
[1742438573009,2.06563,2030.7,2030.6,4.5027]
[1742438573307,1.2779,2030.7,2030.6,5.29047]
[1742438573700,1.2779,2030.7,2030.6,5.98267]
[1742438574810,2.06563,2030.7,2030.6,5.98267]
[1742438576315,2.06563,2030.7,2030.6,5.1949]
[1742438576515,2.06563,2030.7,2030.6,5.98267]
[1742438576701,1.2779,2030.7,2030.6,5.98267]
[1742438577412,1.2779,2030.7,2030.6,6.61556207]
[1742438579215,4.5229,2031.0,2030.6,6.61556207]
[1742438579216,0.78763,2031.0,2030.8,0.78766]
[1742438579414,0.78763,2031.0,2030.9,0.78765]
[1742438579606,2.12923,2031.0,2030.9,0.78765]
[1742438580213,1.3416,2031.0,2030.9,0.78765]
[1742438580408,1.3416,2031.0,2030.9,2.07115]
[1742438580921,0.6487,2031.4,2030.9,5.12462521]
[1742438581111,5.96,2031.5,2031.4,0.78746]
[1742438581306,0.78745,2031.5,2031.4,0.78746]
[1742438581519,0.78737,2031.7,2031.5,0.78742]
[1742438581721,8.05062,2031.8,2031.6,1.2735]
[1742438581910,8.05062,2031.8,2031.6,1.9706]
[1742438582221,0.7872,2032.1,2031.9,0.78724]
[1742438582519,0.6546,2032.1,2031.7,4.4813]
[1742438582722,0.7873,2031.8,2031.7,3.2078]
[1742438583117,3.232,2032.0,2031.7,3.2078]
[1742438583319,0.78728,2031.9,2031.7,3.99512]
[1742438583726,0.78728,2031.9,2031.8,1.2735]
[1742438584720,0.78728,2031.9,2031.8,1.9147]
[1742438585119,0.78728,2031.9,2031.8,2.585]
[1742438585515,0.78724,2032.0,2031.8,3.37228]
[1742438585714,0.78724,2032.0,2031.9,1.315]
[1742438586418,0.7872,2032.1,2031.9,2.10223]
[1742438586618,0.7872,2032.1,2032.0,0.78722]
[1742438586817,0.6487,2032.2,2032.0,2.10222]
[1742438587024,0.78718,2032.2,2032.0,2.10221]
[1742438587223,5.96,2032.4,2032.1,5.32808]
[1742438587527,0.78711,2032.3,2032.2,2.6519]
[1742438587713,0.78711,2032.3,2032.2,3.43903]
[1742438588119,7.287,2032.5,2032.2,3.43903]
[1742438588120,0.78708,2032.4,2032.2,3.43903]
[1742438588317,5.96,2032.5,2032.3,1.3331]
[1742438588522,6.74705,2032.5,2032.3,2.12018]
[1742438588824,0.78707,2032.4,2032.3,2.12018]
[1742438589015,6.74705,2032.5,2032.3,2.12018]
[1742438589218,5.96,2032.5,2032.4,2.12017]
[1742438589518,0.78703,2032.5,2032.4,1.3331]
[1742438592009,0.78711,2032.3,2032.2,1.32618789]
[1742438592424,0.78711,2032.3,2032.2,2.62368789]
[1742438592621,0.78703,2032.5,2032.4,0.78706]
[1742438592921,0.78703,2032.5,2032.4,0.78707]
[1742438593224,0.78703,2032.5,2032.3,2.08459]
[1742438593424,6.4378,2032.6,2032.4,0.78707]
[1742438593616,0.78703,2032.5,2032.4,1.2928]
[1742438593826,0.78711,2032.3,2032.2,4.55618789]
[1742438594023,0.78711,2032.3,2032.2,2.61898789]
[1742438594224,0.78708,2032.4,2032.2,2.61898789]
[1742438594427,0.78708,2032.4,2032.3,1.2928]
[1742438595926,3.23,2032.6,2032.3,1.2928]
[1742438596122,0.78707,2032.4,2032.3,2.0799]
[1742438596424,3.23,2032.6,2032.5,0.78703]
[1742438596625,0.787,2032.6,2032.4,2.10685]
[1742438596829,0.787,2032.6,2032.5,1.3198]
[1742438597021,0.787,2032.6,2032.5,2.79543]
[1742438597216,0.7039,2032.7,2032.5,2.79543]
[1742438597416,0.78695,2032.7,2032.6,1.3198]
[1742438597925,1.398,2032.8,2032.6,2.10679]
[1742438598122,2.18491,2032.8,2032.7,1.3198]
[1742438598327,0.78695,2032.7,2032.6,0.6593]
[1742438598522,0.78699,2032.6,2032.5,0.6886]
[1742438598823,0.78699,2032.6,2032.4,2.10685]
[1742438598824,0.78703,2032.5,2032.4,0.6593]
[1742438599023,2.18503,2032.5,2032.4,0.6593]
[1742438599227,1.398,2032.5,2032.4,2.76617]
[1742438599437,2.18503,2032.5,2032.4,1.9791]
[1742438599917,1.398,2032.5,2032.4,1.9791]
[1742438600116,2.18503,2032.5,2032.4,2.76617]
[1742438600316,2.18503,2032.5,2032.4,1.9791]
[1742438600916,2.18503,2032.5,2032.4,5.1869]
[1742438601428,1.398,2032.5,2032.4,5.97397]
[1742438601621,2.18503,2032.5,2032.4,5.1869]
[1742438601827,1.398,2032.5,2032.4,5.97397]
[1742438603124,2.18503,2032.5,2032.4,5.1869]
[1742438603427,2.18503,2032.5,2032.4,3.2078]
[1742438604021,0.78711,2032.3,2032.2,1.30568789]
[1742438604715,2.10841,2032.3,2032.2,0.00738789]
[1742438605833,2.10841,2032.3,2032.2,2.89943789]
[1742438606332,2.10841,2032.3,2032.2,2.11228789]
[1742438607934,1.3213,2032.3,2032.2,2.89943789]
[1742438609734,3.9331,2032.6,2032.2,2.11228789]
[1742438609943,0.78707,2032.4,2032.3,2.75961]
[1742438610232,1.3793,2032.5,2032.4,0.78707]
[1742438610433,1.3793,2032.5,2032.4,2.12127]
[1742438610734,1.3793,2032.5,2032.4,1.3342]
[1742438610931,0.78707,2032.4,2032.3,3.8461]
[1742438611130,0.78707,2032.4,2032.3,0.6383]
[1742438611435,0.78711,2032.3,2032.2,2.04258789]
[1742438611736,2.12521,2032.3,2032.2,2.04258789]
[1742438612038,1.3381,2032.3,2032.2,2.82973789]
[1742438613233,0.78701,2032.6,2032.2,2.67376578]
[1742438613537,5.96,2032.7,2032.4,0.78705]
[1742438613538,2.12513,2032.5,2032.4,0.78705]
[1742438613728,1.3381,2032.5,2032.4,2.12095]
[1742438614445,1.3381,2032.5,2032.4,2.7522346]
[1742438616531,0.78698,2032.7,2032.5,0.787]
[1742438616737,2.11238,2032.7,2032.6,0.6819]
[1742438617435,2.11238,2032.7,2032.6,2.0567]
[1742438617938,2.11238,2032.7,2032.6,2.84369]
[1742438618139,1.3254,2032.7,2032.6,6.05149]
[1742438618332,2.11235,2032.7,2032.6,6.05149]
[1742438618938,1.3254,2032.7,2032.6,6.68343268]
[1742438620234,9.846,2033.1,2032.6,6.68343268]
[1742438620440,9.846,2033.1,2032.8,0.78688]
[1742438620441,2.09156,2033.0,2032.8,0.78688]
[1742438620734,9.846,2033.1,2032.7,0.63194268]
[1742438620933,0.78691,2032.8,2032.7,1.95324268]
[1742438621131,0.78691,2032.8,2032.7,1.3213]
[1742438621537,0.78691,2032.8,2032.7,2.10825]
[1742438621841,0.7869,2032.9,2032.7,2.10825]
[1742438622041,0.7869,2032.9,2032.8,1.3213]
[1742438622241,0.78695,2032.7,2032.6,4.67667]
[1742438623129,0.78695,2032.7,2032.6,3.8897]
[1742438623527,0.78693,2032.8,2032.6,4.67666]
[1742438623835,0.78693,2032.8,2032.7,1.3213]
[1742438624040,3.229,2032.9,2032.7,2.10825]
[1742438624337,0.78691,2032.8,2032.7,2.10825]
[1742438624640,0.78691,2032.8,2032.7,0.687]
[1742438625432,0.78695,2032.7,2032.6,3.8897]
[1742438625632,0.78695,2032.7,2032.6,4.5587]
[1742438626339,0.78695,2032.7,2032.6,5.34569]
[1742438626732,0.78695,2032.7,2032.6,4.5587]
[1742438629450,0.78695,2032.7,2032.6,3.2078]
[1742438636444,0.78707,2032.4,2032.3,3.2078]
[1742438637843,2.08537,2032.4,2032.3,4.5931]
[1742438639249,2.08537,2032.4,2032.3,3.2078]
[1742438640448,2.08537,2032.4,2032.2,1.99498789]
[1742438640449,0.78711,2032.3,2032.2,0.00738789]
[1742438640753,2.47867398,2032.3,2032.2,0.00738789]
[1742438640951,4.57721,2032.3,2032.2,0.00738789]
[1742438643946,2.07721,2032.3,2032.2,0.00738789]
[1742438646158,8.03721,2032.3,2032.2,0.00738789]
[1742438647754,10.53721,2032.3,2032.2,0.00738789]
[1742438648750,10.62073247,2032.3,2032.2,7.89e-06]
[1742438648942,0.78734,2031.7,2031.6,1.3771]
[1742438649146,4.01634,2031.7,2031.6,1.3771]
[1742438651258,0.78734,2031.7,2031.6,1.3771]
[1742438651449,4.0163,2031.8,2031.6,1.3771]
[1742438651645,0.78732,2031.8,2031.6,2.16447]
[1742438651849,0.78732,2031.8,2031.7,0.6593]
[1742438652158,0.79466789,2031.9,2031.8,0.7873]
[1742438652360,0.7873,2031.8,2031.7,2.81721]
[1742438652554,0.79467789,2031.9,2031.8,0.7873]
[1742438652754,0.79467789,2031.9,2031.7,1.44661]
[1742438653661,0.7873,2031.8,2031.7,1.44661]
[1742438653962,0.79467789,2031.9,2031.8,0.7873]
[1742438654161,0.79467789,2031.9,2031.8,3.9951]
[1742438655363,0.79467789,2031.9,2031.8,3.2078]
[1742438655553,0.79467789,2031.9,2031.8,3.9951]
[1742438655955,0.79467789,2031.9,2031.8,3.2078]
[1742438657857,0.7873,2031.8,2031.7,0.6593]
[1742438658053,2.0786,2031.8,2031.7,0.6593]
[1742438660562,0.7873,2031.8,2031.7,0.6593]
[1742438661259,0.7873,2031.8,2031.7,1.4466]
[1742438663362,0.00738789,2031.9,2031.8,0.7873]
[1742438663566,0.00738789,2031.9,2031.8,3.9951]
[1742438663567,0.79464789,2031.9,2031.8,3.9951]
[1742438664061,0.00738789,2031.9,2031.8,3.9951]
[1742438664567,0.00738789,2031.9,2031.8,4.62656097]
[1742438665268,0.78724,2032.0,2031.9,0.78726]
[1742438665565,0.7872,2032.1,2032.0,0.78719]
[1742438665866,0.78716,2032.2,2032.1,0.78716]
[1742438666163,2.08172,2032.3,2032.2,0.78715]
[1742438666867,0.78715,2032.2,2032.1,4.62642097]
[1742438667067,0.78715,2032.2,2032.1,3.99496]
[1742438668569,0.78715,2032.2,2032.1,5.95458951]
[1742438669875,2.08174,2032.3,2032.2,0.78715]
[1742438670168,2.08174,2032.3,2032.2,1.3674]
[1742438670774,2.08174,2032.3,2032.2,2.15455]
[1742438671467,1.2946,2032.3,2032.2,2.15455]
[1742438671670,0.7871,2032.4,2032.2,1.3674]
[1742438671869,2.1832,2032.4,2032.3,1.4269]
[1742438672065,2.1832,2032.4,2032.3,2.0951]
[1742438672265,2.1832,2032.4,2032.3,1.308]
[1742438672566,0.78711,2032.3,2032.2,0.63165338]
[1742438672766,3.49531,2032.3,2032.2,0.63165338]
[1742438672972,0.78715,2032.2,2032.1,3.2078]
[1742438673169,2.09315,2032.2,2032.1,3.2078]
[1742438673567,2.09315,2032.2,2032.1,4.5531]
[1742438674571,2.09315,2032.2,2032.1,3.2078]
[1742438675275,0.78726,2031.9,2031.8,6.02149]
[1742438675567,0.78726,2031.9,2031.8,4.5531]
[1742438675774,0.78726,2031.9,2031.8,3.2078]
[1742438676478,1.46406,2031.9,2031.8,3.2078]
[1742438676875,4.69206,2031.9,2031.8,3.2078]
[1742438677177,5.34986,2031.9,2031.8,3.2078]
[1742438678678,5.34986,2031.9,2031.8,4.5281]
[1742438678876,4.69206,2031.9,2031.8,4.5281]
[1742438680679,4.69206,2031.9,2031.8,3.2078]
[1742438682184,4.69206,2031.9,2031.8,4.6065]
[1742438684291,4.69206,2031.9,2031.8,1.3987]
[1742438687991,0.78734,2031.7,2031.6,3.2078]
[1742438688192,0.78734,2031.7,2031.6,4.478]
[1742438688384,0.78734,2031.7,2031.6,5.26538]
[1742438688693,2.16504,2031.7,2031.6,4.478]
[1742438689192,5.96,2032.1,2032.0,0.78722]
[1742438689379,0.78724,2032.0,2031.7,1.2702]
[1742438689585,0.78724,2032.0,2031.9,0.6852]
[1742438690491,2.16494,2032.0,2031.9,1.47246]
[1742438690792,2.16494,2032.0,2031.9,0.6852]
[1742438691788,2.16494,2032.0,2031.9,2.72252156]
[1742438692194,2.16494,2032.0,2031.9,3.36262156]
[1742438693589,2.16494,2032.0,2031.9,0.63242156]
[1742438693786,0.7873,2031.8,2031.7,1.4049]
[1742438694389,2.0896,2031.8,2031.7,1.4049]
[1742438696896,1.3023,2031.8,2031.7,2.19224]
[1742438697404,3.228,2032.0,2031.7,1.4049]
[1742438697691,1.4091,2031.9,2031.8,2.08378]
[1742438697992,2.19636,2031.9,2031.8,1.92905347]
[1742438698694,2.19636,2031.9,2031.8,1.2965]
[1742438698895,0.78734,2031.7,2031.6,3.9017]
[1742438699090,0.78734,2031.7,2031.6,5.1982]
[1742438699693,0.78734,2031.7,2031.6,5.83107338]
[1742438700294,1.4091,2031.8,2031.7,0.78734]
[1742438700497,1.4091,2031.8,2031.7,2.18884]
[1742438700690,2.1964,2031.8,2031.7,1.4015]
[1742438700889,2.1964,2031.8,2031.7,2.03437338]
[1742438701399,2.1964,2031.8,2031.7,1.4015]
[1742438702599,1.4091,2031.8,2031.7,2.18884]
[1742438702901,1.2711,2031.9,2031.7,2.03485194]
[1742438703102,1.2711,2031.9,2031.8,2.0572]
[1742438703402,2.05836,2031.9,2031.8,2.0572]
[1742438703602,2.05836,2031.9,2031.8,1.90325194]
[1742438703902,2.05836,2031.9,2031.8,2.69055194]
[1742438704095,1.2711,2031.9,2031.8,2.69055194]
[1742438704705,2.05836,2031.9,2031.8,2.69055194]
[1742438705798,2.05836,2031.9,2031.8,1.90325194]
[1742438706093,5.28536,2031.9,2031.8,0.63335194]
[1742438707205,5.28536,2031.9,2031.8,1.3393]
[1742438707906,5.28536,2031.9,2031.8,2.1266]
[1742438708106,5.28536,2031.9,2031.8,1.3393]
[1742438708710,5.28536,2031.9,2031.8,1.9731128]
[1742438709114,5.28536,2031.9,2031.8,0.6338128]
[1742438709812,0.7873,2031.8,2031.7,1.3456]
[1742438710008,3.4108,2031.8,2031.7,1.3456]
[1742438710309,0.78734,2031.7,2031.6,3.2078]
[1742438710514,5.28994,2031.7,2031.6,3.2078]
[1742438711011,5.28994,2031.7,2031.6,4.5534]
[1742438711807,1.2756,2031.7,2031.6,5.34078]
[1742438712215,1.2756,2031.7,2031.6,5.97466222]
[1742438712605,1.2756,2031.7,2031.6,6.64538752]
[1742438713213,2.15176,2031.9,2031.7,0.78731]
[1742438713513,0.78726,2031.9,2031.8,1.351]
[1742438713908,0.78726,2031.9,2031.8,1.98488222]
[1742438714107,4.01425,2032.0,2031.9,0.78726]
[1742438714307,4.01422,2032.0,2031.9,2.13826]
[1742438714518,4.01422,2032.0,2031.9,1.9899]
[1742438714722,4.01422,2032.0,2031.9,2.62378222]
[1742438716217,4.01422,2032.0,2031.9,1.98488222]
[1742438717113,4.01422,2032.0,2031.9,2.77214222]
[1742438717313,4.01422,2032.0,2031.9,1.98488222]
[1742438717917,4.01422,2032.0,2031.9,2.77214222]
[1742438718113,4.01422,2032.0,2031.9,1.98488222]
[1742438719905,9.1678,2032.5,2032.1,0.78715]
[1742438720109,0.78715,2032.2,2032.0,2.75079]
[1742438720310,0.78715,2032.2,2032.1,1.977]
[1742438720913,0.78715,2032.2,2032.1,1.94652569]
[1742438721113,4.01415,2032.2,2032.1,0.63372569]
[1742438721619,0.78718,2032.1,2032.0,2.0073]
[1742438721918,0.78718,2032.1,2032.0,0.6508]
[1742438722418,0.78718,2032.1,2032.0,1.2846265]
[1742438722817,0.78718,2032.1,2032.0,0.6338265]
[1742438723121,0.7873,2031.8,2031.7,1.45573]
[1742438723723,0.7873,2031.8,2031.7,2.0894304]
[1742438724019,0.7873,2031.8,2031.7,1.3021004]
[1742438724423,0.7873,2031.8,2031.7,0.6337004]
[1742438724623,1.4586,2031.8,2031.7,0.6337004]
[1742438725116,0.78734,2031.7,2031.6,3.8762]
[1742438726025,0.78734,2031.7,2031.6,4.50984518]
[1742438726525,0.78734,2031.7,2031.6,5.29722518]
[1742438726722,3.227,2031.8,2031.7,0.78734]
[1742438726723,4.0143,2031.8,2031.7,0.78734]
[1742438727522,4.0143,2031.8,2031.7,1.42098518]
[1742438728218,4.0143,2031.8,2031.7,0.63364518]
[1742438728925,4.712,2031.8,2031.7,0.63364518]
[1742438729621,0.78734,2031.7,2031.6,3.8762]
[1742438729827,2.11924,2031.7,2031.6,3.8762]
[1742438730524,2.11924,2031.7,2031.6,4.50998937]
[1742438731023,2.11924,2031.7,2031.6,5.29736937]
[1742438731324,1.3319,2031.7,2031.6,5.29736937]
[1742438731522,2.11924,2031.7,2031.6,5.29736937]
[1742438732029,1.3319,2031.7,2031.6,5.29736937]
[1742438732726,2.11924,2031.7,2031.6,5.29736937]
[1742438734320,0.78734,2031.7,2031.6,5.29736937]
[1742438734515,4.01431,2031.8,2031.7,0.78734]
[1742438735226,4.01431,2031.8,2031.7,1.42112937]
[1742438735929,4.01431,2031.8,2031.7,0.63378937]
[1742438737122,0.78734,2031.7,2031.6,4.66357]
[1742438737730,0.78734,2031.7,2031.6,1.30267581]
[1742438737931,0.78734,2031.7,2031.6,2.70227581]
[1742438738928,0.78734,2031.7,2031.6,3.48965581]
[1742438741320,0.78734,2031.7,2031.6,2.70227581]
[1742438742225,0.78734,2031.7,2031.6,3.48965581]
[1742438743325,5.96,2032.0,2031.6,2.70227581]
[1742438743527,0.78734,2031.7,2031.6,4.51047581]
[1742438743730,0.78734,2031.7,2031.6,5.87537581]
[1742438744536,0.78734,2031.7,2031.6,6.66275581]
[1742438744734,0.78734,2031.7,2031.6,5.87537581]
[1742438745836,1.45384,2031.7,2031.6,5.87537581]
[1742438746139,4.67984,2031.7,2031.6,5.87537581]
[1742438746336,4.67984,2031.7,2031.6,0.63427581]
[1742438746636,13.13984,2031.7,2031.6,0.63427581]
[1742438747334,0.78742,2031.5,2031.4,0.00738789]
[1742438747536,4.01342,2031.5,2031.4,0.00738789]
[1742438748329,4.68802,2031.5,2031.4,0.00738789]
[1742438748739,4.01342,2031.5,2031.4,1.35408789]
[1742438748932,4.01342,2031.5,2031.4,1.99008789]
[1742438749438,4.01342,2031.5,2031.4,2.77754789]
[1742438749633,4.01342,2031.5,2031.4,1.99008789]
[1742438750032,4.01342,2031.5,2031.4,2.62355493]
[1742438750531,4.01342,2031.5,2031.4,1.99008789]
[1742438754137,1.379,2031.6,2031.4,1.99008789]
[1742438754330,9.186,2031.7,2031.5,1.9502]
[1742438754529,9.97334,2031.7,2031.6,1.2959]
[1742438754730,4.01334,2031.7,2031.6,1.2959]
[1742438754941,4.5668,2031.8,2031.6,4.5037]
[1742438755141,0.78734,2031.7,2031.6,5.29106]
[1742438755346,0.78734,2031.7,2031.6,3.99516]
[1742438755842,0.78734,2031.7,2031.6,4.62847746]
[1742438757034,1.3408,2031.8,2031.6,4.62847746]
[1742438757035,2.1281,2031.8,2031.7,0.78734]
[1742438757437,0.78734,2031.7,2031.6,3.84111746]
[1742438757645,2.07974,2031.7,2031.6,3.84111746]
[1742438758043,2.07974,2031.7,2031.6,4.62849746]
[1742438760539,2.07974,2031.7,2031.6,3.84111746]
[1742438761140,2.72334,2031.7,2031.6,3.84111746]
[1742438761448,2.07974,2031.7,2031.6,3.84111746]
[1742438761749,2.07974,2031.7,2031.6,3.99518]
[1742438762147,2.07974,2031.7,2031.6,3.2078]
[1742438762348,2.07974,2031.7,2031.6,3.99518]
[1742438762349,1.2924,2031.7,2031.6,3.99518]
[1742438762542,5.96,2031.9,2031.8,0.7873]
[1742438762940,8.12926,2031.9,2031.8,0.7873]
[1742438763136,7.342,2031.9,2031.8,0.7873]
[1742438763339,8.12926,2031.9,2031.8,0.7873]
[1742438763548,2.16926,2031.9,2031.8,0.7873]
[1742438763852,1.382,2031.9,2031.8,0.7873]
[1742438764450,2.16926,2031.9,2031.8,0.7873]
[1742438765144,1.382,2031.9,2031.8,0.7873]
[1742438765344,2.16926,2031.9,2031.8,0.7873]
[1742438766554,7.21997,2032.2,2031.7,43.43413]
[1742438766848,7.21997,2032.2,2032.1,0.78718]
[1742438767244,6.4328,2032.2,2032.0,0.7872]
[1742438767444,7.21998,2032.2,2032.0,0.7872]
[1742438767639,7.21998,2032.2,2032.1,1.46568]
[1742438767849,5.27048,2032.2,2032.1,1.46568]
[1742438768148,8.10443626,2032.6,2032.1,1.46568]
[1742438768149,5.96,2032.7,2032.3,1.96778]
[1742438768451,0.78681,2033.1,2032.6,5.17525]
[1742438768643,0.78687,2033.0,2032.9,0.78687]
[1742438769245,1.2755,2033.1,2032.8,1.3167]
[1742438769444,1.2755,2033.1,2033.0,0.78684]
[1742438769952,1.2755,2033.1,2033.0,2.18484]
[1742438770352,3.2078,2033.2,2033.1,0.7868]
[1742438770552,3.2078,2033.8,2033.0,6.5901]
[1742438770852,1.3912,2033.4,2033.3,3.99448]
[1742438771148,7.2662,2033.9,2033.4,0.78668]
[1742438771452,1.3912,2033.7,2033.5,1.398]
[1742438771837,0.78664,2033.5,2033.4,0.6448]
[1742438772050,0.78668,2033.4,2033.3,3.2078]
[1742438772251,2.17788,2033.4,2033.3,3.2078]
[1742438772651,1.3912,2033.4,2033.3,3.99452]
[1742438773050,3.224,2033.6,2033.3,3.2078]
[1742438773248,2.12967,2033.5,2033.4,1.3309]
[1742438773650,0.78668,2033.4,2033.3,3.2078]
[1742438773843,2.12968,2033.4,2033.3,3.2078]
[1742438774940,3.224,2033.6,2033.3,3.2078]
[1742438775151,2.12967,2033.5,2033.4,1.3309]
[1742438775348,1.343,2033.5,2033.4,2.11758]
[1742438776656,1.343,2033.5,2033.3,3.99451]
[1742438776855,1.343,2033.5,2033.3,3.2078]
[1742438776856,0.78668,2033.4,2033.3,3.2078]
[1742438777657,2.15438,2033.4,2033.3,3.2078]
[1742438777955,2.81168,2033.4,2033.3,3.2078]
[1742438779259,2.15438,2033.4,2033.3,3.2078]
[1742438779654,2.15438,2033.4,2033.3,4.5822]
[1742438781363,1.3677,2033.4,2033.3,5.36892]
[1742438781662,1.3198,2033.6,2033.5,0.78662]
[1742438782163,2.1064,2033.6,2033.5,0.78662]
[1742438782356,3.2078,2034.1,2033.5,5.723]
[1742438782552,0.78646,2034.0,2033.8,0.78649]
[1742438782748,0.78645,2034.0,2033.9,1.3613]
[1742438783865,0.78653,2033.8,2033.7,47.23818789]
[1742438784060,0.78651,2033.9,2033.7,45.37648789]
[1742438784274,0.78647,2034.0,2033.9,0.78649]
[1742438784470,0.78649,2033.9,2033.8,0.78651]
[1742438784665,0.78653,2033.8,2033.7,45.37648789]
[1742438785067,0.78653,2033.8,2033.7,3.21518789]
[1742438788368,0.78653,2033.8,2033.7,4.53328789]
[1742438789575,3.222,2033.9,2033.7,5.31985789]
[1742438789783,4.0085,2033.9,2033.7,5.31985789]
[1742438790073,4.0085,2033.9,2033.8,0.78653]
[1742438790273,7.3309,2034.0,2033.7,5.31982789]
[1742438790575,0.78653,2033.8,2033.7,5.31982789]
[1742438792073,0.78651,2033.9,2033.8,0.78653]
[1742438792376,0.78653,2033.8,2033.7,5.31982789]
[1742438792769,0.78653,2033.8,2033.7,4.53328789]
[1742438793873,0.78653,2033.8,2033.7,3.21518789]
[1742438796776,4.0085,2033.9,2033.7,4.00172789]
[1742438797071,4.0085,2033.9,2033.7,3.21518789]
[1742438797072,3.222,2033.9,2033.7,3.21518789]
[1742438797275,3.222,2033.9,2033.7,4.00175789]
[1742438797778,0.78653,2033.8,2033.7,3.21518789]
[1742438797971,2.18253,2033.8,2033.7,4.53478789]
[1742438798171,1.396,2033.8,2033.7,4.53478789]
[1742438798378,2.18253,2033.8,2033.7,4.53478789]
[1742438798876,2.18253,2033.8,2033.7,5.16571004]
[1742438800174,2.18253,2033.8,2033.7,3.84611004]
[1742438800865,2.18253,2033.8,2033.7,3.21518789]
[1742438802567,2.86593,2033.8,2033.7,3.21518789]
[1742438804267,2.86593,2033.8,2033.7,0.00738789]
[1742438804671,6.07373,2033.8,2033.7,0.00738789]
[1742438805488,2.86593,2033.8,2033.7,0.00738789]
[1742438807580,6.07373,2033.8,2033.7,0.00738789]
[1742438807882,8.57373,2033.8,2033.7,0.00738789]
[1742438809681,14.61718768,2033.8,2033.7,0.00738789]
[1742438809886,14.61718768,2033.8,2033.3,3.2078]
[1742438809887,0.78668,2033.4,2033.3,3.2078]
[1742438810085,4.00868,2033.4,2033.3,3.2078]
[1742438810686,5.37198,2033.4,2033.3,3.2078]
[1742438811581,4.5853,2033.4,2033.3,3.2078]
[1742438811784,5.37198,2033.4,2033.3,3.2078]
[1742438812289,5.37198,2033.4,2033.3,5.21608411]
[1742438813687,5.37198,2033.4,2033.3,4.5836]
[1742438819887,5.37198,2033.4,2033.3,5.37032]
[1742438820190,0.78668,2033.4,2033.3,5.37032]
[1742438820989,0.78668,2033.4,2033.3,4.5836]
[1742438821188,0.78668,2033.4,2033.3,5.37032]
[1742438821592,0.00738789,2033.6,2033.4,0.78668]
[1742438821797,4.01598789,2033.6,2033.5,2.003]
[1742438821991,4.01598789,2033.6,2033.3,3.2078]
[1742438821992,0.78668,2033.4,2033.3,3.2078]
[1742438822293,4.00868,2033.4,2033.3,3.2078]
[1742438822792,5.32288,2033.4,2033.3,3.2078]
[1742438825893,2.10088,2033.4,2033.3,4.5894]
[1742438826092,5.32288,2033.4,2033.3,4.5894]
[1742438827789,5.32288,2033.4,2033.3,5.37612]